bitfinex/quotes_BTCUSD_20251114
["timestamp","ask_amount","ask_price","bid_price","bid_amount"]
[1763086330503,0.01665,99501.0,99500.0,0.02013746]
[1763086331617,0.01665,99501.0,99500.0,0.00013746]
[1763086332053,0.01665,99501.0,99500.0,0.02513746]
[1763086333201,0.01156,99533.0,99503.0,0.04341874]
[1763086333441,0.01156,99533.0,99532.0,0.2009404]
[1763086333667,0.01156,99541.0,99540.0,0.20092425]
[1763086333902,0.01156,99541.0,99540.0,0.22092425]
[1763086334121,0.01156,99541.0,99540.0,0.02]
[1763086334122,0.02821,99541.0,99540.0,0.02]
[1763086334340,0.02821,99541.0,99535.0,0.24435106]
[1763086334546,0.02821,99541.0,99540.0,0.22092425]
[1763086334766,0.03602,99541.0,99540.0,0.22092425]
[1763086334981,0.05267,99541.0,99540.0,0.22092425]
[1763086335164,0.05267,99541.0,99540.0,0.22492425]
[1763086335373,0.05267,99541.0,99540.0,0.20292425]
[1763086335589,0.21092978,99560.0,99553.0,0.20089801]
[1763086335590,0.43611154,99560.0,99553.0,0.20089801]
[1763086335794,0.43611154,99560.0,99552.0,0.20089843]
[1763086335795,0.02446,99558.0,99552.0,0.20089843]
[1763086335997,0.01665,99553.0,99552.0,0.20089843]
[1763086336852,0.01434044,99553.0,99540.0,0.02]
[1763086337250,0.20090003,99552.0,99542.0,0.20091927]
[1763086337460,0.20090003,99552.0,99550.0,0.02]
[1763086337604,0.01665,99551.0,99550.0,0.22090204]
[1763086337817,0.01665,99551.0,99550.0,0.20090204]
[1763086338983,0.01665,99551.0,99550.0,0.22090204]
[1763086339115,0.01665,99551.0,99550.0,0.20090204]
[1763086339339,0.01429389,99551.0,99550.0,0.20090204]
[1763086340130,0.01429389,99551.0,99550.0,0.20190204]
[1763086340618,0.01429389,99551.0,99550.0,0.20390204]
[1763086341011,0.01429389,99551.0,99550.0,0.22390204]
[1763086341247,0.01429389,99551.0,99550.0,0.20390204]
[1763086341452,0.02446,99559.0,99551.0,0.20089992]
[1763086341657,0.02446,99559.0,99552.0,0.20090003]
[1763086342072,0.01665,99553.0,99550.0,0.023]
[1763086342281,0.01665,99553.0,99550.0,0.021]
[1763086342282,0.01665,99551.0,99550.0,0.021]
[1763086342699,0.26055158,99551.0,99550.0,0.021]
[1763086342869,0.21755205,99551.0,99550.0,0.001]
[1763086343288,0.20091692,99544.0,99541.0,0.04341874]
[1763086343513,0.20091692,99544.0,99534.0,0.04341874]
[1763086343736,0.02446,99543.0,99534.0,0.20093561]
[1763086343942,0.02821,99536.0,99535.0,0.0435562]
[1763086344140,0.02821,99536.0,99535.0,0.00013746]
[1763086344544,0.09375517,99536.0,99535.0,0.00013746]
[1763086344745,0.09375517,99536.0,99535.0,0.0435562]
[1763086344926,0.02821,99536.0,99535.0,0.0455562]
[1763086345542,0.02821,99536.0,99535.0,0.0475562]
[1763086346145,0.02821,99536.0,99535.0,0.0455562]
[1763086346701,0.02821,99536.0,99535.0,0.0475562]
[1763086347229,0.01156,99579.0,99535.0,0.0475562]
[1763086347423,0.01156,99579.0,99560.0,0.43611154]
[1763086347424,0.01156,99575.0,99560.0,0.43611154]
[1763086347634,0.01156,99579.0,99578.0,0.20084757]
[1763086347841,0.0002,99590.0,99589.0,0.20082539]
[1763086348259,0.0002,99590.0,99589.0,0.56724413]
[1763086348903,0.0006584,99590.0,99589.0,0.56724413]
[1763086350126,0.0026584,99590.0,99589.0,0.56724413]
[1763086350339,0.0076584,99590.0,99589.0,0.56724413]
[1763086350688,0.0056584,99590.0,99589.0,0.56724413]
[1763086350927,0.0076584,99590.0,99589.0,0.56724413]
[1763086352610,0.01139,99621.0,99599.0,0.20080367]
[1763086352825,0.00010129,99621.0,99620.0,0.22076289]
[1763086353026,0.00010129,99621.0,99620.0,0.24418163]
[1763086353977,0.00210129,99621.0,99620.0,0.24418163]
[1763086354409,0.00236071,99621.0,99620.0,0.24418163]
[1763086354659,0.00136071,99621.0,99620.0,0.24418163]
[1763086354874,0.00336071,99621.0,99620.0,0.24418163]
[1763086356104,0.00336071,99621.0,99620.0,0.24618163]
[1763086356291,0.00136071,99621.0,99620.0,0.24618163]
[1763086356592,0.00136071,99621.0,99620.0,0.24818163]
[1763086357025,0.0002,99630.0,99628.0,0.20074677]
[1763086357026,0.09123772,99629.0,99628.0,0.20074677]
[1763086357326,0.09123772,99629.0,99628.0,0.56716551]
[1763086357525,0.0002,99630.0,99629.0,0.36641874]
[1763086358516,0.0002,99630.0,99629.0,0.1199326]
[1763086358698,0.0002,99630.0,99629.0,0.04341874]
[1763086360460,0.0002,99630.0,99629.0,0.11949598]
[1763086360908,0.0002,99630.0,99629.0,0.04341874]
[1763086362700,0.00043125,99630.0,99629.0,0.04341874]
[1763086362912,0.00443125,99630.0,99629.0,0.36641874]
[1763086365817,0.02357125,99630.0,99620.0,0.02]
[1763086366016,0.00843125,99630.0,99620.0,0.02]
[1763086366193,0.00843125,99630.0,99629.0,0.2441635]
[1763086366765,0.00043125,99630.0,99629.0,0.2441635]
[1763086367066,0.00743125,99630.0,99629.0,0.2441635]
[1763086368103,0.00443125,99630.0,99629.0,0.2441635]
[1763086368297,0.00043125,99630.0,99629.0,0.2441635]
[1763086368544,0.00343125,99630.0,99629.0,0.2441635]
[1763086368731,0.00443125,99630.0,99629.0,0.2441635]
[1763086369283,0.00343125,99630.0,99629.0,0.2441635]
[1763086369487,0.00043125,99630.0,99629.0,0.2441635]
[1763086369628,0.00443125,99630.0,99629.0,0.2441635]
[1763086369884,0.00743125,99630.0,99629.0,0.2441635]
[1763086373406,0.00743125,99630.0,99629.0,0.5671635]
[1763086373619,0.02257125,99630.0,99629.0,0.5671635]
[1763086373826,0.02257125,99630.0,99602.0,0.09048676]
[1763086374042,0.01514,99627.0,99602.0,0.00010129]
[1763086374439,0.02407,99626.0,99620.0,0.20076212]
[1763086374697,0.20075282,99625.0,99620.0,0.02]
[1763086375025,0.2007686,99618.0,99616.0,0.323]
[1763086375160,0.20076611,99619.0,99616.0,0.323]
[1763086375359,0.01514,99617.0,99616.0,0.323]
[1763086375791,0.01514,99617.0,99611.0,0.04341874]
[1763086375953,0.20077253,99616.0,99611.0,0.04341874]
[1763086376162,0.20077297,99615.0,99611.0,0.04341874]
[1763086376587,0.20077096,99616.0,99613.0,0.04341874]
[1763086376916,0.01514,99617.0,99616.0,0.20077096]
[1763086377147,0.01139,99621.0,99620.0,0.20076289]
[1763086377402,0.02653,99621.0,99620.0,0.02]
[1763086377747,0.02653,99621.0,99616.0,0.003]
[1763086377916,0.01514,99617.0,99616.0,0.52676907]
[1763086378114,0.01514,99617.0,99616.0,0.52376907]
[1763086378771,0.01514,99617.0,99616.0,0.323]
[1763086378980,0.01514,99617.0,99616.0,0.326]
[1763086379482,0.01514,99617.0,99616.0,0.33]
[1763086379658,0.01514,99617.0,99616.0,0.007]
[1763086379659,0.21590894,99617.0,99616.0,0.007]
[1763086380858,0.29714404,99617.0,99616.0,0.007]
[1763086381294,0.21590894,99617.0,99616.0,0.007]
[1763086381706,0.21590894,99617.0,99616.0,0.003]
[1763086381958,0.20079716,99603.0,99602.0,0.00010129]
[1763086382150,0.22896716,99603.0,99602.0,0.00010129]
[1763086384335,0.23196716,99603.0,99602.0,0.00010129]
[1763086384523,0.22896716,99603.0,99602.0,0.00010129]
[1763086384718,0.22896716,99603.0,99602.0,0.00310129]
[1763086384945,0.22996716,99603.0,99602.0,0.00310129]
[1763086385360,0.22996716,99603.0,99602.0,0.00710129]
[1763086385599,0.32033586,99603.0,99602.0,0.00710129]
[1763086385960,0.41260659,99603.0,99602.0,0.00710129]
[1763086386578,0.43135061,99603.0,99602.0,0.00710129]
[1763086386795,0.33907988,99603.0,99602.0,0.00710129]
[1763086386999,0.04791402,99603.0,99602.0,0.00710129]
[1763086387174,0.13828272,99603.0,99602.0,0.00710129]
[1763086387393,0.13828272,99603.0,99602.0,0.00310129]
[1763086387394,0.02917,99603.0,99602.0,0.00310129]
[1763086387586,0.02817,99603.0,99602.0,0.00310129]
[1763086387870,0.01139,99621.0,99602.0,0.00310129]
[1763086387871,0.20077337,99615.0,99607.0,0.20078842]
[1763086388068,0.03721,99618.0,99602.0,0.00610129]
[1763086388069,0.03721,99618.0,99602.0,0.20689845]
[1763086388294,0.01241,99618.0,99616.0,0.20076989]
[1763086388541,0.0248,99617.0,99614.0,0.20077413]
[1763086388749,0.01241,99618.0,99602.0,0.00010129]
[1763086388951,0.01241,99618.0,99616.0,0.20076905]
[1763086389354,0.01527,99617.0,99616.0,0.20076905]
[1763086389925,0.01527,99617.0,99613.0,0.20077616]
[1763086390324,0.01527,99617.0,99615.0,0.20077121]
[1763086390522,0.01527,99617.0,99614.0,0.004]
[1763086390904,0.01527,99614.0,99602.0,0.00310129]
[1763086391149,0.01527,99603.0,99602.0,0.00010129]
[1763086391522,0.21317814,99618.0,99615.0,0.003]
[1763086391728,0.29113945,99617.0,99615.0,0.003]
[1763086391873,0.01527,99616.0,99614.0,0.004]
[1763086392071,0.01527,99616.0,99613.0,0.20077697]
[1763086392274,0.01527,99616.0,99614.0,0.20077338]
[1763086392719,0.01527,99615.0,99605.0,0.2007914]
[1763086392923,0.01527,99614.0,99610.0,0.02]
[1763086393125,0.01527,99614.0,99612.0,0.20077802]
[1763086393410,0.01527,99611.0,99610.0,0.02]
[1763086393819,0.020518,99611.0,99610.0,0.02]
[1763086394043,0.22129903,99611.0,99610.0,0.004]
[1763086394383,0.20079051,99607.0,99602.0,0.00010129]
[1763086394579,0.01527,99603.0,99602.0,0.00010129]
[1763086395469,0.005248,99611.0,99602.0,0.00010129]
[1763086395470,0.20076364,99620.0,99614.0,0.20077412]
[1763086395694,0.20075717,99623.0,99610.0,0.02]
[1763086395866,0.20075764,99623.0,99615.0,0.20077214]
[1763086396069,0.20075764,99623.0,99610.0,0.02]
[1763086396070,0.03721,99618.0,99610.0,0.02]
[1763086396270,0.2007805,99612.0,99610.0,0.02]
[1763086396485,0.01527,99611.0,99610.0,0.02]
[1763086396920,0.01527,99611.0,99602.0,0.00410129]
[1763086397123,0.01527,99603.0,99602.0,0.00410129]
[1763086397324,0.0248,99610.0,99609.0,0.20078506]
[1763086397552,0.01241,99618.0,99602.0,0.00010129]
[1763086397764,0.01241,99618.0,99616.0,0.20076907]
[1763086398308,0.00043125,99630.0,99620.0,0.20076289]
[1763086398512,0.00043125,99630.0,99629.0,0.20074476]
[1763086398848,0.01570125,99630.0,99629.0,0.20074476]
[1763086399234,0.01570125,99630.0,99620.0,0.22076194]
[1763086399480,0.01527,99621.0,99610.0,0.04341874]
[1763086399688,0.01527,99621.0,99620.0,0.22076289]
[1763086399889,0.01527,99621.0,99620.0,0.02]
[1763086400691,0.01627,99621.0,99620.0,0.02]
[1763086400967,0.20076491,99619.0,99612.0,0.323]
[1763086401166,0.01627,99621.0,99611.0,0.20077963]
[1763086401167,0.20076706,99618.0,99611.0,0.20077963]
[1763086401375,0.0258,99621.0,99612.0,0.24419656]
[1763086401592,0.20076982,99617.0,99612.0,0.24419656]
[1763086401842,0.02745,99613.0,99612.0,0.24419656]
[1763086402162,0.02745,99613.0,99610.0,0.02]
[1763086402294,0.01527,99611.0,99610.0,0.02]
[1763086402511,0.01218,99613.0,99610.0,0.22078267]
[1763086402869,0.01218,99613.0,99611.0,0.20077954]
[1763086403827,0.01618,99613.0,99611.0,0.20077954]
[1763086404265,0.01518,99613.0,99611.0,0.20077954]
[1763086404643,0.007,99613.0,99611.0,0.20077954]
[1763086410282,0.007,99613.0,99612.0,0.20077902]
[1763086411666,0.003,99613.0,99612.0,0.20077902]
[1763086412070,0.01218,99621.0,99620.0,0.22076289]
[1763086412421,0.01218,99621.0,99620.0,0.20076289]
[1763086412722,0.02753,99621.0,99620.0,0.22076289]
[1763086413301,0.02853,99621.0,99620.0,0.22076289]
[1763086413501,0.22929088,99621.0,99616.0,0.20076938]
[1763086413668,0.20077283,99616.0,99613.0,0.20077677]
[1763086413862,0.01535,99613.0,99610.0,0.02]
[1763086414105,0.02322,99620.0,99610.0,0.02]
[1763086414309,0.02322,99620.0,99614.0,0.20077303]
[1763086414718,0.01535,99615.0,99612.0,0.20077775]
[1763086415163,0.01535,99613.0,99612.0,0.20077775]
[1763086415373,0.01835,99613.0,99611.0,0.20078047]
[1763086415535,0.01535,99613.0,99611.0,0.20078047]
[1763086415738,0.2161306,99612.0,99610.0,0.02]
[1763086415940,0.21613103,99611.0,99610.0,0.02]
[1763086416390,0.01535,99611.0,99610.0,0.02]
[1763086416993,0.004,99613.0,99611.0,0.20078103]
[1763086417949,0.02322,99620.0,99619.0,0.20076491]
[1763086418149,0.02322,99620.0,99610.0,0.20078305]
[1763086418150,0.004,99611.0,99610.0,0.20078305]
[1763086418402,0.008,99611.0,99610.0,0.20078305]
[1763086418602,0.004,99611.0,99610.0,0.20078305]
[1763086418820,0.02322,99620.0,99619.0,0.20076491]
[1763086419351,0.03857,99620.0,99619.0,0.20376491]
[1763086420392,0.01535,99620.0,99619.0,0.20376491]
[1763086420596,0.01535,99620.0,99619.0,0.003]
[1763086420803,0.01535,99620.0,99619.0,0.20376491]
[1763086421004,0.01535,99620.0,99619.0,0.003]
[1763086421360,0.01535,99620.0,99619.0,0.007]
[1763086423204,0.21611289,99620.0,99619.0,0.007]
[1763086424048,0.01218,99621.0,99619.0,0.007]
[1763086424271,0.01218,99621.0,99620.0,0.22076289]
[1763086424468,0.02753,99621.0,99620.0,0.22076289]
[1763086424809,0.01218,99621.0,99620.0,0.22076289]
[1763086424939,0.01139,99631.0,99628.0,0.20074518]
[1763086425355,0.01535,99629.0,99628.0,0.20074518]
[1763086425602,0.01535,99629.0,99620.0,0.003]
[1763086425777,0.01535,99628.0,99625.0,0.20075085]
[1763086425959,0.01535,99628.0,99627.0,0.20074879]
[1763086426567,0.01535,99628.0,99625.0,0.2007526]
[1763086426764,0.20075181,99626.0,99622.0,0.20075711]
[1763086426970,0.01535,99621.0,99620.0,0.023]
[1763086427322,0.01535,99621.0,99600.0,0.01004016]
[1763086427560,0.20076537,99619.0,99610.0,0.02]
[1763086427763,0.02322,99620.0,99614.0,0.20077331]
[1763086427970,0.20076935,99617.0,99612.0,0.20077757]
[1763086428173,0.20076935,99617.0,99611.0,0.20078018]
[1763086428303,0.01535,99612.0,99610.0,0.02]
[1763086428505,0.01535,99611.0,99610.0,0.02]
[1763086428911,0.01535,99611.0,99610.0,0.22078305]
[1763086429541,0.01535,99611.0,99610.0,0.02]
[1763086429742,0.20078943,99607.0,99602.0,0.20089934]
[1763086429921,0.06018239,99611.0,99602.0,0.00010129]
[1763086430128,0.20079304,99606.0,99602.0,0.00010129]
[1763086430333,0.22745716,99603.0,99602.0,0.00010129]
[1763086430539,0.02666,99603.0,99602.0,0.00010129]
[1763086430942,0.20077512,99614.0,99609.0,0.20078331]
[1763086431147,0.20078412,99610.0,99602.0,0.00010129]
[1763086431542,0.004,99606.0,99604.0,0.2007944]
[1763086431970,0.20078164,99611.0,99606.0,0.20078947]
[1763086432167,0.2239978,99613.0,99610.0,0.02]
[1763086432386,0.003,99610.0,99609.0,0.20078448]
[1763086432567,0.01535,99610.0,99609.0,0.20078448]
[1763086432889,0.20079004,99607.0,99603.0,0.20079631]
[1763086433098,0.20078722,99608.0,99603.0,0.20079631]
[1763086433271,0.20079093,99607.0,99604.0,0.20079482]
[1763086433432,0.20079195,99606.0,99603.0,0.20079631]
[1763086433637,0.20079157,99606.0,99602.0,0.00010129]
[1763086433840,0.01131,99603.0,99602.0,0.00010129]
[1763086434056,0.02666,99603.0,99602.0,0.00010129]
[1763086435124,0.2706814,99603.0,99602.0,0.00010129]
[1763086435348,0.23045716,99603.0,99602.0,0.00010129]
[1763086435503,0.03366,99603.0,99602.0,0.20090047]
[1763086435664,0.03366,99603.0,99602.0,0.00010129]
[1763086436481,0.02966,99603.0,99602.0,0.00010129]
[1763086436886,0.02666,99603.0,99602.0,0.20490047]
[1763086437342,0.02322,99612.0,99611.0,0.20078103]
[1763086437827,0.03857,99612.0,99611.0,0.20078103]
[1763086437981,0.03857,99612.0,99610.0,0.22078279]
[1763086438184,0.01535,99611.0,99610.0,0.02]
[1763086438429,0.01535,99611.0,99610.0,0.22078305]
[1763086440542,0.02322,99612.0,99610.0,0.22078305]
[1763086440543,0.00043125,99630.0,99615.0,0.20077297]
[1763086440704,0.00043125,99630.0,99620.0,0.02]
[1763086440907,0.02753,99611.0,99610.0,0.016]
[1763086441149,0.02753,99611.0,99610.0,0.006]
[1763086441496,0.02753,99611.0,99610.0,0.22378305]
[1763086441696,0.02753,99611.0,99610.0,0.023]
[1763086441903,0.02753,99611.0,99610.0,0.02]
[1763086443348,0.02853,99611.0,99610.0,0.02]
[1763086444492,0.001,99611.0,99609.0,0.20078397]
[1763086444900,0.001,99611.0,99610.0,0.04341874]
[1763086445546,0.001,99611.0,99610.0,0.06995656]
[1763086445752,0.001,99611.0,99610.0,0.04341874]
[1763086446174,0.00043125,99630.0,99620.0,0.02]
[1763086446389,0.00043125,99630.0,99629.0,0.20074476]
[1763086446666,0.00043125,99630.0,99628.0,0.20074661]
[1763086448126,0.00043125,99630.0,99628.0,0.20674661]
[1763086448652,0.21600476,99629.0,99628.0,0.006]
[1763086449073,0.01526,99629.0,99628.0,0.006]
[1763086449756,0.01526,99629.0,99627.0,0.20074799]
[1763086450124,0.21600703,99628.0,99625.0,0.20075259]
[1763086450324,0.01526,99627.0,99625.0,0.20075259]
[1763086450524,0.00043125,99630.0,99629.0,0.20074476]
[1763086451848,0.21643399,99630.0,99629.0,0.006]
[1763086456875,0.21643399,99630.0,99629.0,0.003]
[1763086457194,0.21643399,99630.0,99629.0,0.002]
[1763086457541,0.21643399,99630.0,99629.0,0.004]
[1763086460337,0.53943399,99630.0,99629.0,0.004]
[1763086461186,0.53943399,99630.0,99629.0,0.002]
[1763086461518,0.63791735,99630.0,99629.0,0.002]
[1763086462265,0.20079716,99603.0,99602.0,0.00010129]
[1763086462466,0.02677,99603.0,99602.0,0.00010129]
[1763086463310,0.02677,99603.0,99602.0,0.00300129]
[1763086463529,0.20084152,99581.0,99580.0,0.02]
[1763086463765,0.01526,99578.0,99570.0,0.38360163]
[1763086463964,0.01526,99578.0,99575.0,0.2008525]
[1763086464216,0.01526,99578.0,99577.0,0.20084959]
[1763086464589,0.01151,99580.0,99579.0,0.20084555]
[1763086464791,0.01151,99580.0,99574.0,0.20085552]
[1763086464792,0.03492016,99600.0,99592.0,0.20081783]
[1763086464935,0.20080947,99597.0,99592.0,0.20081903]
[1763086465597,0.01526,99593.0,99592.0,0.20081903]
[1763086465775,0.20081934,99592.0,99590.0,0.02]
[1763086465972,0.01526,99592.0,99590.0,0.220823]
[1763086466173,0.01526,99591.0,99590.0,0.02]
[1763086467422,0.004,99591.0,99590.0,0.02]
[1763086467697,0.009,99591.0,99590.0,0.02]
[1763086468309,0.02026,99591.0,99590.0,0.02]
[1763086468514,0.005,99591.0,99590.0,0.02]
[1763086468719,0.009,99591.0,99590.0,0.02]
[1763086470752,0.009,99591.0,99590.0,0.04011]
[1763086470956,0.009,99591.0,99590.0,0.02]
[1763086471168,0.06724368,99591.0,99590.0,0.02]
[1763086471749,0.02503,99591.0,99590.0,0.02]
[1763086473069,0.009,99591.0,99589.0,0.20082504]
[1763086474140,0.009,99591.0,99590.0,0.02]
[1763086474546,0.005,99591.0,99590.0,0.22082337]
[1763086474780,0.009,99591.0,99590.0,0.22082337]
[1763086474997,0.02003,99591.0,99590.0,0.02]
[1763086475199,0.21685135,99591.0,99590.0,0.02]
[1763086475454,0.02503,99591.0,99590.0,0.22082337]
[1763086475933,0.02503,99591.0,99590.0,0.02]
[1763086475934,0.02003,99591.0,99590.0,0.02]
[1763086476183,0.26916849,99591.0,99590.0,0.02]
[1763086476407,0.22585135,99591.0,99590.0,0.02]
[1763086476618,0.02503,99591.0,99590.0,0.02]
[1763086477035,0.02503,99591.0,99590.0,0.22082337]
[1763086477236,0.02503,99591.0,99590.0,0.02]
[1763086477483,0.26966895,99591.0,99590.0,0.02]
[1763086477705,0.02503,99591.0,99590.0,0.02]
[1763086478080,0.22585135,99591.0,99590.0,0.02]
[1763086479330,0.02503,99591.0,99590.0,0.22082337]
[1763086479533,0.009,99591.0,99590.0,0.20082337]
[1763086480736,0.005,99591.0,99590.0,0.20082337]
[1763086480943,0.2247433,99600.0,99590.0,0.02]
[1763086481148,0.004,99591.0,99589.0,0.20082524]
[1763086481351,0.008,99591.0,99589.0,0.20082524]
[1763086481785,0.20080651,99599.0,99596.0,0.20081122]
[1763086481996,0.20080651,99599.0,99590.0,0.02]
[1763086482198,0.02394,99600.0,99599.0,0.20080522]
[1763086482333,0.02394,99600.0,99598.0,0.20080689]
[1763086482538,0.01603,99599.0,99598.0,0.20080689]
[1763086482741,0.06133719,99599.0,99570.0,0.44660339]
[1763086482942,0.02394,99600.0,99580.0,0.02]
[1763086482943,0.0121,99581.0,99580.0,0.02]
[1763086483224,0.02813,99581.0,99571.0,0.04341874]
[1763086483793,0.02394,99580.0,99571.0,0.04341874]
[1763086483964,0.0121,99572.0,99571.0,0.24428043]
[1763086485585,0.0151,99572.0,99571.0,0.24428043]
[1763086485793,0.06077997,99572.0,99571.0,0.24428043]
[1763086486189,0.0151,99572.0,99571.0,0.24428043]
[1763086486367,0.0151,99572.0,99570.0,0.0204584]
[1763086486573,0.01603,99571.0,99570.0,0.0204584]
[1763086487944,0.01603,99571.0,99570.0,0.0004584]
[1763086488572,0.01903,99571.0,99570.0,0.0004584]
[1763086488773,0.08639988,99571.0,99570.0,0.0004584]
[1763086488998,0.17676858,99571.0,99570.0,0.0004584]
[1763086489853,0.02303,99571.0,99570.0,0.0004584]
[1763086490263,0.02003,99571.0,99570.0,0.0004584]
[1763086490459,0.1103987,99571.0,99570.0,0.0044584]
[1763086491137,0.1063987,99571.0,99570.0,0.0044584]
[1763086491557,0.01603,99571.0,99570.0,0.0084584]
[1763086491762,0.1063987,99571.0,99570.0,0.0084584]
[1763086492998,0.30726039,99571.0,99570.0,0.0084584]
[1763086495235,0.39945323,99571.0,99570.0,0.0084584]
[1763086495449,0.30726039,99571.0,99570.0,0.0284584]
[1763086495652,0.30726039,99571.0,99570.0,0.0084584]
[1763086496074,0.30726039,99571.0,99570.0,0.0284584]
[1763086496251,0.01603,99571.0,99570.0,0.0084584]
[1763086496452,0.25987603,99571.0,99570.0,0.0084584]
[1763086497076,0.25987603,99571.0,99570.0,0.0284584]
[1763086497594,0.05901434,99571.0,99570.0,0.0284584]
[1763086498098,0.25987603,99571.0,99570.0,0.0084584]
[1763086498382,0.05901434,99571.0,99570.0,0.22932211]
[1763086498492,0.05901434,99571.0,99570.0,0.0284584]
[1763086499194,0.05901434,99571.0,99570.0,0.22932211]
[1763086499786,0.01603,99571.0,99570.0,0.22932211]
[1763086500400,0.01603,99571.0,99570.0,0.0284584]
[1763086500605,0.20083864,99583.0,99570.0,0.0284584]
[1763086500606,0.0123,99576.0,99570.0,0.22932211]
[1763086500813,0.0123,99591.0,99570.0,0.01850158]
[1763086501018,0.0123,99584.0,99580.0,0.02]
[1763086501197,0.03586,99591.0,99580.0,0.02]
[1763086501397,0.2243874,99590.0,99585.0,0.20083216]
[1763086501590,0.02356,99590.0,99580.0,0.02]
[1763086501802,0.02356,99590.0,99588.0,0.20082563]
[1763086502111,0.02356,99590.0,99580.0,0.02]
[1763086502314,0.20082539,99589.0,99580.0,0.02]
[1763086502515,0.02356,99590.0,99587.0,0.20082769]
[1763086502714,0.02356,99590.0,99588.0,0.20082715]
[1763086502878,0.01647,99589.0,99588.0,0.20082715]
[1763086503077,0.01647,99589.0,99586.0,0.2008312]
[1763086503298,0.01647,99589.0,99585.0,0.20283343]
[1763086503513,0.22438398,99590.0,99585.0,0.002]
[1763086503514,0.02356,99590.0,99585.0,0.002]
[1763086503720,0.02356,99590.0,99586.0,0.20083144]
[1763086503921,0.20082869,99588.0,99585.0,0.002]
[1763086504253,0.02877,99586.0,99585.0,0.20283235]
[1763086504536,0.02877,99586.0,99585.0,0.20083235]
[1763086504885,0.0123,99586.0,99585.0,0.20083235]
[1763086505140,0.0123,99586.0,99584.0,0.20083529]
[1763086505382,0.0123,99586.0,99585.0,0.20083345]
[1763086505549,0.20082012,99592.0,99590.0,0.02]
[1763086505774,0.01647,99591.0,99590.0,0.02]
[1763086505998,0.0123,99593.0,99592.0,0.19597336]
[1763086506142,0.0123,99593.0,99580.0,0.38398823]
[1763086506143,0.03586,99621.0,99601.0,0.2008005]
[1763086506356,0.0123,99611.0,99593.0,0.38398823]
[1763086506651,0.0123,99602.0,99600.0,0.20080253]
[1763086506995,0.0123,99602.0,99600.0,0.20080221]
[1763086507197,0.01509,99601.0,99600.0,0.20080221]
[1763086507371,0.01509,99601.0,99597.0,0.20080864]
[1763086507553,0.01243731,99602.0,99591.0,0.04341874]
[1763086507755,0.01243731,99602.0,99601.0,0.20080119]
[1763086508359,0.00013731,99602.0,99601.0,0.20080119]
[1763086508586,0.00413731,99602.0,99601.0,0.24421993]
[1763086508945,0.03015173,99639.0,99629.0,0.20074476]
[1763086509146,0.01181,99637.0,99629.0,0.20074476]
[1763086510303,0.00443125,99630.0,99629.0,0.20074476]
[1763086510889,0.00843125,99630.0,99629.0,0.20074476]
[1763086512631,0.00843125,99630.0,99629.0,0.2441635]
[1763086513330,0.02352125,99630.0,99620.0,0.02]
[1763086513534,0.00843125,99630.0,99629.0,0.20074476]
[1763086513666,0.00043125,99630.0,99629.0,0.20074476]
[1763086513886,0.00443125,99630.0,99629.0,0.2441635]
[1763086514082,0.00743125,99630.0,99629.0,0.2441635]
[1763086514487,0.00343125,99630.0,99629.0,0.2441635]
[1763086514686,0.00743125,99630.0,99629.0,0.2441635]
[1763086515370,0.00043125,99630.0,99629.0,0.2441635]
[1763086515500,0.00643125,99630.0,99629.0,0.2441635]
[1763086515843,0.00343125,99630.0,99629.0,0.5671635]
[1763086516087,1e-08,99630.0,99629.0,0.5671635]
[1763086516264,0.00300001,99630.0,99629.0,0.5671635]
[1763086516469,1e-08,99630.0,99629.0,0.5671635]
[1763086516801,0.0002,99640.0,99639.0,0.24414335]
[1763086517021,0.00033741,99640.0,99639.0,0.33463011]
[1763086517219,0.00059431,99640.0,99639.0,0.33463011]
[1763086517463,0.00059431,99640.0,99639.0,0.36476612]
[1763086518045,0.00359431,99640.0,99639.0,0.36476612]
[1763086519284,0.00559431,99640.0,99639.0,0.68776612]
[1763086519811,0.00559431,99640.0,99639.0,0.71430394]
[1763086520882,0.00559431,99640.0,99639.0,0.68776612]
[1763086521648,0.00559431,99640.0,99639.0,0.71430394]
[1763086523671,0.00559431,99640.0,99639.0,0.68776612]
[1763086524232,0.00559431,99640.0,99639.0,0.71430394]
[1763086524459,0.00559431,99640.0,99639.0,0.68776612]
[1763086525868,0.00559431,99640.0,99639.0,0.70787612]
[1763086528719,0.00559431,99640.0,99639.0,0.59727936]
[1763086531433,0.00559431,99640.0,99639.0,0.27427936]
[1763086532482,0.00059431,99640.0,99639.0,0.27427936]
[1763086532678,0.00359431,99640.0,99639.0,0.24414335]
[1763086532893,0.00659431,99640.0,99639.0,0.24414335]
[1763086534113,0.00359431,99640.0,99639.0,0.24414335]
[1763086535509,0.00659431,99640.0,99639.0,0.24414335]
[1763086536647,0.00575993,99640.0,99639.0,0.24414335]
[1763086538975,0.00575993,99640.0,99639.0,0.04341874]
[1763086539180,0.00575993,99640.0,99631.0,0.04341874]
[1763086539181,0.02095993,99640.0,99631.0,0.04341874]
[1763086539378,0.03948,99639.0,99630.0,0.02]
[1763086539745,0.0152,99631.0,99630.0,0.06341874]
[1763086539945,0.21594073,99631.0,99630.0,0.02]
[1763086540146,0.0152,99631.0,99630.0,0.02]
[1763086540530,0.0152,99631.0,99630.0,0.22074274]
[1763086541332,0.0152,99631.0,99630.0,0.02]
[1763086541538,0.0182,99631.0,99630.0,0.02]
[1763086541929,0.0182,99631.0,99630.0,0.22074274]
[1763086542429,0.0222,99631.0,99630.0,0.22074274]
[1763086542637,0.007,99631.0,99630.0,0.22074274]
[1763086543476,0.0222,99631.0,99630.0,0.02]
[1763086544237,0.007,99631.0,99630.0,0.22074274]
[1763086544437,0.0222,99631.0,99630.0,0.22074274]
[1763086546561,0.007,99631.0,99630.0,0.20074274]
[1763086547602,0.003,99631.0,99630.0,0.20074274]
[1763086547806,0.16242187,99643.0,99624.0,0.04341874]
[1763086547807,0.16242187,99643.0,99641.0,0.20072014]
[1763086548004,0.16242187,99643.0,99642.0,0.20071857]
[1763086548461,0.17762187,99643.0,99642.0,0.20071857]
[1763086549164,0.17762187,99643.0,99640.0,0.2207217]
[1763086549310,0.0152,99642.0,99640.0,0.22072094]